[Event "Dutch Open-ch 2019"]
[Site "Dieren"]
[Date "2019.07.26"]
[Round "4.12"]
[White "Nair, Sanjeev"]
[Black "Grooten, Herman"]
[Result "0-1"]
[ECO "B43"]
[WhiteElo "2045"]
[BlackElo "2310"]
[Annotator "NA"]
[PlyCount "142"]
[EventDate "2019.07.23"]
[EventType "swiss"]
[EventCountry "NED"]
[SourceTitle "playchess.com"]
[Source "ChessBase"]
[SourceQuality "1"]
[TimeControl "40/5400+30:1800+30"]

1. e4 {[%emt 0:00:00]} c5 {[%emt 0:00:00]} 2. Nf3 {[%emt 0:00:00]} e6 {[%emt 0:00:00]} 3. d4 {[%emt 0:00:00]} cxd4 {[%emt 0:00:00]} 4. Nxd4 {[%emt 0:00:00]} a6 {[%emt 0:00:04]} 5. Nc3 {[%emt 0:00:12]} Qc7 {[%emt 0:00:20]} 6. Bd3 {[%emt 0:00:29]} Nf6 {[%emt 0:00:48]} 7. O-O {[%emt 0:00:55]} d6 {[%emt 0:01:23]} 8. f4 {[%emt 0:02:21]} Nbd7 {[%emt 0:01:55]} 9. Kh1 $11 {[%emt 0:02:36]} b5 {[%emt 0:02:14]} 10. a3 {[%emt 0:04:05]} Bb7 {[%emt 0:00:29]} 11. Qe2 {[%emt 0:00:21]} g6 {[%emt 0:04:37]} 12. f5 {[%emt 0:06:14]} e5 {[%emt 0:03:06]} 13. Ne6 {[%emt 0:01:16]} fxe6 {[%emt 0:03:04]} 14. fxe6 {[%emt 0:00:08]} Bg7 {[%emt 0:00:35]} 15. exd7+ {[%emt 0:10:52]} Qxd7 {[%emt 0:00:18]} 16. a4 {[%emt 0:14:55]} b4 {[%emt 0:02:01]} 17. Na2 {[%emt 0:05:55]} a5 {[%emt 0:06:44]} 18. Bc4 {[%emt 0:02:26]} d5 {[%emt 0:05:26]} 19. Bb5 {[%emt 0:10:00]} Bc6 {[%emt 0:00:08]} 20. exd5 {[%emt 0:00:05]} Bxb5 {[%emt 0:11:22]} 21. Qxe5+ {[%emt 0:00:52]} Qe7 {[%emt 0:00:09]} 22. Qxe7+ {[%emt 0:06:43]} Kxe7 {[%emt 0:00:08]} 23. axb5 {[%emt 0:00:04]} Nxd5 {[%emt 0:03:52]} 24. c4 {[%emt 0:06:52]} bxc3 {[%emt 0:04:58]} 25. Nxc3 {[%emt 0:00:23]} Nxc3 {[%emt 0:01:00]} 26. bxc3 {[%emt 0:00:07]} Bxc3 {[%emt 0:01:48]} 27. Ba3+ {[%emt 0:01:33]} Ke6 {[%emt 0:00:45]} 28. Rac1 {[%emt 0:05:15]} Rhc8 {[%emt 0:46:46]} 29. Rf3 {[%emt 0:03:21]} Bb4 {[%emt 0:00:00]} 30. Rd1 {[%emt 0:01:45]} Rc5 {[%emt 0:00:00]} 31. b6 {[%emt 0:03:24]} Rb8 {[%emt 0:00:00]} 32. Bb2 {[%emt 0:01:00]} Rb7 {[%emt 0:00:00]} 33. g4 {[%emt 0:02:13]} Rc8 {[%emt 0:00:00]} 34. Rf6+ {[%emt 0:06:31]} Ke7 {[%emt 0:00:00]} 35. Rdf1 {[%emt 0:01:36]} Ke8 {[%emt 0:00:00]} 36. g5 {[%emt 0:02:51]} Rc2 {[%emt 0:00:00]} 37. Be5 {[%emt 0:00:37]} Be7 {[%emt 0:00:00]} 38. Rf7 {[%emt 0:00:31]} Rxb6 {[%emt 0:00:00]} 39. Rxh7 {[%emt 0:00:15]} Bxg5 {[%emt 0:00:00]} 40. Bd4 {[%emt 0:00:44]} Re6 {[%emt 0:00:00]} 41. Rb1 {[%emt 0:06:05]} Rc1+ {[%emt 0:00:00]} 42. Rxc1 {[%emt 0:00:06]} Bxc1 {[%emt 0:00:00]} 43. Ra7 {[%emt 0:00:42]} Bd2 {[%emt 0:00:00]} 44. Kg2 {[%emt 0:01:02]} Kd8 {[%emt 0:00:00]} 45. Kf3 {[%emt 0:02:03]} Kc8 {[%emt 0:00:00]} 46. Bc5 {[%emt 0:05:42]} Kb8 {[%emt 0:00:00]} 47. Rd7 {[%emt 0:01:25]} Bb4 {[%emt 0:00:00]} 48. Bd4 {[%emt 0:02:13]} a4 {[%emt 0:00:00]} 49. Rd5 {[%emt 0:06:18]} Kc7 {[%emt 0:00:00]} 50. Rb5 {[%emt 0:00:28]} Be7 {[%emt 0:00:00]} 51. Ra5 {[%emt 0:02:24]} a3 {[%emt 0:00:14]} 52. h4 {[%emt 0:03:30]} Kb7 {[%emt 0:08:55]} 53. Ra7+ {[%emt 0:00:50]} Kc6 {[%emt 0:00:22]} 54. Ra5 {[%emt 0:00:54]} Bb4 {[%emt 0:00:49]} 55. Ra8 {[%emt 0:02:17]} Kd5 {[%emt 0:00:32]} 56. Ba1 {[%emt 0:02:00]} Kc4 {[%emt 0:00:26]} 57. Kf4 {[%emt 0:00:19]} Re1 {[%emt 0:02:36]} 58. Bf6 {[%emt 0:00:21]} Rf1+ {[%emt 0:03:16]} 59. Kg5 {[%emt 0:00:22]} Rg1+ {[%emt 0:00:30]} 60. Kh6 {[%emt 0:00:24]} Kb3 {[%emt 0:00:41]} 61. Ra7 {[%emt 0:01:06]} a2 {[%emt 0:03:45]} 62. Bd4 {[%emt 0:00:19]} Rg4 {[%emt 0:00:44]} 63. Bf6 {[%emt 0:00:20]} Be1 {[%emt 0:02:03]} 64. Rb7+ {[%emt 0:00:42]} Rb4 {[%emt 0:00:47]} 65. Ra7 {[%emt 0:00:40]} Bxh4 {[%emt 0:00:30]} 66. Ba1 {[%emt 0:00:30]} Bf2 {[%emt 0:02:54]} 67. Rd7 {[%emt 0:00:30]} Rb6 {[%emt 0:00:35]} 68. Kg5 {[%emt 0:00:30]} Be3+ {[%emt 0:00:07]} 69. Kg4 {[%emt 0:00:08]} Bc1 {[%emt 0:00:34]} 70. Rd3+ {[%emt 0:00:47]} Kc2 {[%emt 0:00:17]} 71. Rh3 {[%emt 0:00:28]} Rb4+ {[%emt 0:00:14]} 0-1

[Event "Dutch Open-ch 2019"]
[Site "Dieren"]
[Date "2019.07.26"]
[Round "4.13"]
[White "Sharma, Dinesh K."]
[Black "Ypma, Jord"]
[Result "1-0"]
[ECO "D13"]
[WhiteElo "2299"]
[BlackElo "1968"]
[Annotator "NA"]
[PlyCount "73"]
[EventDate "2019.07.23"]
[EventType "swiss"]
[EventCountry "NED"]
[SourceTitle "playchess.com"]
[Source "ChessBase"]
[SourceQuality "1"]
[TimeControl "40/5400+30:1800+30"]

1. d4 {[%emt 0:00:00]} d5 {[%emt 0:00:00]} 2. c4 {[%emt 0:00:00]} c6 {[%emt 0:00:24]} 3. Nf3 {[%emt 0:00:03]} Nf6 {[%emt 0:00:31]} 4. e3 {[%emt 0:00:02]} Bf5 {[%emt 0:00:48]} 5. cxd5 $11 {[%emt 0:00:08]} cxd5 {[%emt 0:02:25]} 6. Nc3 {[%emt 0:00:04]} Nc6 {[%emt 0:16:24]} 7. Ne5 {[%emt 0:03:09]} e6 {[%emt 0:09:02]} 8. g4 {[%emt 0:01:37]} Be4 {[%emt 0:03:43]} 9. f3 {[%emt 0:03:04]} Bg6 {[%emt 0:00:18]} 10. h4 {[%emt 0:00:03]} h6 {[%emt 0:02:27]} 11. Nxg6 {[%emt 0:01:34]} fxg6 {[%emt 0:00:04]} 12. Bd3 {[%emt 0:01:49]} Bd6 {[%emt 0:02:34]} 13. Bxg6+ {[%emt 0:00:53]} Ke7 {[%emt 0:00:00]} 14. Kf2 {[%emt 0:14:20]} a6 {[%emt 0:06:55]} 15. Kg2 {[%emt 0:02:06]} Qb6 {[%emt 0:03:22]} 16. Bd2 {[%emt 0:06:20]} Raf8 {[%emt 0:02:22]} 17. Na4 {[%emt 0:01:48]} Qc7 {[%emt 0:02:50]} 18. Rc1 {[%emt 0:00:49]} Nd7 {[%emt 0:06:31]} 19. f4 {[%emt 0:03:24]} Rf6 {[%emt 0:02:17]} 20. Bd3 {[%emt 0:01:11]} Rff8 {[%emt 0:06:38]} 21. Bg6 {[%emt 0:08:17]} Rf6 {[%emt 0:01:03]} 22. Qc2 {[%emt 0:00:26]} Qd8 {[%emt 0:06:07]} 23. h5 {[%emt 0:06:30]} Rhf8 {[%emt 0:04:45]} 24. Rcf1 {[%emt 0:02:52]} Qb8 {[%emt 0:03:17]} 25. f5 {[%emt 0:01:35]} e5 {[%emt 0:01:31]} 26. Nc3 {[%emt 0:00:44]} exd4 {[%emt 0:04:36]} 27. Nxd5+ {[%emt 0:03:03]} Kd8 {[%emt 0:00:06]} 28. exd4 {[%emt 0:00:46]} Nxd4 {[%emt 0:02:22]} 29. Qe4 {[%emt 0:01:47]} Be5 {[%emt 0:02:17]} 30. Bb4 {[%emt 0:14:55]} Rd6 {[%emt 0:04:43]} 31. Rd1 {[%emt 0:03:07]} Nc6 {[%emt 0:01:08]} 32. Bxd6 {[%emt 0:00:46]} Bxd6 {[%emt 0:00:19]} 33. Rhe1 {[%emt 0:00:41]} Nf6 {[%emt 0:01:43]} 34. Nxf6 {[%emt 0:01:38]} Rxf6 {[%emt 0:00:05]} 35. Qe8+ {[%emt 0:06:48]} Kc7 {[%emt 0:00:04]} 36. Qxb8+ {[%emt 0:00:18]} Kxb8 {[%emt 0:00:23]} 37. Be8 {[%emt 0:00:50]} 1-0

[Event "Dutch Open-ch 2019"]
[Site "Dieren"]
[Date "2019.07.26"]
[Round "4.14"]
[White "Van Hoorn, Geert"]
[Black "Ashwath, R.."]
[Result "0-1"]
[ECO "B33"]
[WhiteElo "2010"]
[BlackElo "2365"]
[Annotator "NA"]
[PlyCount "58"]
[EventDate "2019.07.23"]
[EventType "swiss"]
[EventCountry "NED"]
[SourceTitle "playchess.com"]
[Source "ChessBase"]
[SourceQuality "1"]
[TimeControl "40/5400+30:1800+30"]

1. e4 {[%emt 0:00:00]} c5 {[%emt 0:03:08]} 2. Ne2 {[%emt 0:00:00]} Nc6 {[%emt 0:00:23]} 3. d4 {[%emt 0:00:00]} cxd4 {[%emt 0:00:34]} 4. Nxd4 {[%emt 0:00:03]} e5 {[%emt 0:04:58]} 5. Nb5 {[%emt 0:00:31]} d6 {[%emt 0:00:05]} 6. N1c3 {[%emt 0:00:53]} a6 $11 {[%emt 0:00:15]} 7. Na3 {[%emt 0:00:04]} Be6 {[%emt 0:01:07]} 8. Nd5 {[%emt 0:02:14]} Nf6 {[%emt 0:14:38]} 9. Bg5 {[%emt 0:00:19]} Bxd5 {[%emt 0:02:12]} 10. Qxd5 {[%emt 0:14:29]} Qb6 {[%emt 0:16:04]} 11. Bxf6 {[%emt 0:09:21]} Qb4+ {[%emt 0:01:21]} 12. Qd2 {[%emt 0:17:04]} Qxb2 {[%emt 0:07:10]} 13. Rd1 {[%emt 0:00:51]} Qxa3 {[%emt 0:00:22]} 14. Bg5 {[%emt 0:00:33]} d5 {[%emt 0:07:32]} 15. Qd3 {[%emt 0:13:47]} Qxa2 {[%emt 0:09:13]} 16. exd5 {[%emt 0:05:04]} Nb4 {[%emt 0:01:46]} 17. Qc4 {[%emt 0:05:58]} Nxc2+ {[%emt 0:02:13]} 18. Kd2 {[%emt 0:00:23]} Bb4+ {[%emt 0:07:48]} 19. Kd3 {[%emt 0:04:40]} Qxc4+ {[%emt 0:01:51]} 20. Kxc4 {[%emt 0:00:16]} Rc8+ {[%emt 0:00:13]} 21. Kb3 {[%emt 0:00:28]} Rc3+ {[%emt 0:00:24]} 22. Kb2 {[%emt 0:00:17]} Nd4 {[%emt 0:00:22]} 23. Be3 {[%emt 0:02:17]} Rc2+ {[%emt 0:02:42]} 24. Kb1 {[%emt 0:00:23]} Bc3 {[%emt 0:00:31]} 25. Rd3 {[%emt 0:01:32]} O-O {[%emt 0:01:20]} 26. d6 {[%emt 0:05:23]} Rd8 {[%emt 0:00:52]} 27. f4 {[%emt 0:00:40]} Rxd6 {[%emt 0:00:23]} 28. Bxd4 {[%emt 0:00:32]} Rb2+ {[%emt 0:00:07]} 29. Kc1 {[%emt 0:00:44]} exd4 {[%emt 0:00:15]} 0-1

[Event "Dutch Open-ch 2019"]
[Site "Dieren"]
[Date "2019.07.26"]
[Round "4.15"]
[White "De Boer, Bas"]
[Black "Neelotpal, Das"]
[Result "0-1"]
[ECO "D46"]
[WhiteElo "2117"]
[BlackElo "2406"]
[Annotator "NA"]
[PlyCount "110"]
[EventDate "2019.07.23"]
[EventType "swiss"]
[EventCountry "NED"]
[SourceTitle "playchess.com"]
[Source "ChessBase"]
[SourceQuality "1"]
[TimeControl "40/5400+30:1800+30"]

1. Nf3 {[%emt 0:00:00]} d5 {[%emt 0:00:08]} 2. e3 {[%emt 0:00:00]} Nf6 {[%emt 0:00:45]} 3. c4 {[%emt 0:00:00]} e6 {[%emt 0:00:55]} 4. Nc3 {[%emt 0:00:03]} c6 {[%emt 0:00:49]} 5. d4 {[%emt 0:00:33]} Nbd7 {[%emt 0:00:04]} 6. Qc2 {[%emt 0:00:41]} Bd6 {[%emt 0:00:05]} 7. Bd3 {[%emt 0:00:12]} O-O {[%emt 0:00:13]} 8. O-O {[%emt 0:00:12]} dxc4 {[%emt 0:00:11]} 9. Bxc4 {[%emt 0:00:09]} b5 {[%emt 0:00:02]} 10. Be2 {[%emt 0:00:14]} Qe7 {[%emt 0:00:04]} 11. Rd1 {[%emt 0:07:36]} b4 {[%emt 0:26:23]} 12. Ne4 {[%emt 0:04:29]} Nxe4 {[%emt 0:00:09]} 13. Qxe4 {[%emt 0:00:03]} Bb7 {[%emt 0:00:42]} 14. Bd2 {[%emt 0:05:20]} Nf6 {[%emt 0:05:21]} 15. Qh4 $11 {[%emt 0:03:12]} c5 {[%emt 0:02:11]} 16. Rac1 {[%emt 0:04:10]} Rac8 {[%emt 0:09:30]} 17. dxc5 {[%emt 0:03:06]} Bxc5 {[%emt 0:00:36]} 18. Rxc5 {[%emt 0:13:35]} Qxc5 {[%emt 0:03:05]} 19. Bxb4 {[%emt 0:02:44]} Qc2 {[%emt 0:00:14]} 20. Nd4 {[%emt 0:00:05]} Qg6 {[%emt 0:04:32]} 21. Qh3 {[%emt 0:04:28]} Rfd8 {[%emt 0:01:21]} 22. f4 {[%emt 0:05:08]} Be4 {[%emt 0:05:53]} 23. Rf1 {[%emt 0:03:31]} Nd5 {[%emt 0:08:16]} 24. Bd2 {[%emt 0:00:15]} Ne7 {[%emt 0:00:55]} 25. g4 {[%emt 0:07:02]} Nc6 {[%emt 0:11:52]} 26. Bc3 {[%emt 0:02:10]} Nxd4 {[%emt 0:00:35]} 27. exd4 {[%emt 0:00:58]} Bd5 {[%emt 0:02:01]} 28. Bd3 {[%emt 0:00:38]} f5 {[%emt 0:00:17]} 29. g5 {[%emt 0:01:30]} Bc4 {[%emt 0:02:35]} 30. Bxc4 {[%emt 0:01:36]} Rxc4 {[%emt 0:00:07]} 31. Qf3 {[%emt 0:01:29]} Rd5 {[%emt 0:03:43]} 32. Re1 {[%emt 0:02:32]} h5 {[%emt 0:02:49]} 33. h4 {[%emt 0:00:37]} Qf7 {[%emt 0:00:21]} 34. Qd3 {[%emt 0:04:22]} Rc6 {[%emt 0:00:52]} 35. Kf2 {[%emt 0:02:38]} g6 {[%emt 0:00:16]} 36. Re3 {[%emt 0:04:37]} Qd7 {[%emt 0:00:29]} 37. Kg3 {[%emt 0:02:29]} Kf7 {[%emt 0:00:07]} 38. a3 {[%emt 0:01:38]} Qb7 {[%emt 0:02:27]} 39. Qe2 {[%emt 0:02:24]} Qc7 {[%emt 0:02:21]} 40. Qf3 {[%emt 0:02:22]} Qd7 {[%emt 0:01:01]} 41. Qe2 {[%emt 0:32:07]} Rb6 {[%emt 0:33:05]} 42. Qc4 {[%emt 0:01:22]} a5 {[%emt 0:00:00]} 43. Re5 {[%emt 0:00:00]} a4 {[%emt 0:00:00]} 44. Kf2 {[%emt 0:00:00]} Rbd6 {[%emt 0:00:00]} 45. Ke3 {[%emt 0:00:00]} Rxe5+ {[%emt 0:00:00]} 46. fxe5 {[%emt 0:00:00]} Qc6 {[%emt 0:00:00]} 47. Qd3 {[%emt 0:00:00]} Rd7 {[%emt 0:00:00]} 48. Qc2 {[%emt 0:00:00]} Kg7 {[%emt 0:00:00]} 49. Qd3 {[%emt 0:00:00]} f4+ {[%emt 0:00:00]} 50. Kf2 {[%emt 0:00:00]} Qh1 {[%emt 0:00:00]} 51. Qb5 {[%emt 0:00:00]} Qxh4+ {[%emt 0:00:00]} 52. Kf1 {[%emt 0:00:00]} Qh3+ {[%emt 0:00:27]} 53. Kf2 {[%emt 0:00:00]} Qg3+ {[%emt 0:00:52]} 54. Kf1 {[%emt 0:00:00]} Rf7 {[%emt 0:00:17]} 55. d5 {[%emt 0:00:00]} f3 {[%emt 0:00:52]} 0-1

[Event "Dutch Open-ch 2019"]
[Site "Dieren"]
[Date "2019.07.26"]
[Round "4.16"]
[White "Grutter, Tim"]
[Black "Kolbus, Dietmar"]
[Result "0-1"]
[ECO "B91"]
[WhiteElo "2091"]
[BlackElo "2281"]
[Annotator "NA"]
[PlyCount "92"]
[EventDate "2019.07.23"]
[EventType "swiss"]
[EventCountry "NED"]
[SourceTitle "playchess.com"]
[Source "ChessBase"]
[SourceQuality "1"]
[TimeControl "40/5400+30:1800+30"]

1. e4 {[%emt 0:00:00]} c5 {[%emt 0:00:00]} 2. Nf3 {[%emt 0:00:00]} a6 {[%emt 0:00:22]} 3. Nc3 {[%emt 0:00:14]} d6 {[%emt 0:01:16]} 4. d4 {[%emt 0:00:15]} cxd4 {[%emt 0:00:03]} 5. Nxd4 {[%emt 0:00:13]} Nf6 $14 {[%emt 0:00:15]} 6. g3 {[%emt 0:00:22]} e5 {[%emt 0:01:54]} 7. Nb3 {[%emt 0:00:46]} Be7 {[%emt 0:00:39]} 8. Bg2 {[%emt 0:00:06]} O-O {[%emt 0:00:15]} 9. O-O {[%emt 0:00:21]} Be6 {[%emt 0:00:42]} 10. a4 {[%emt 0:00:04]} b6 {[%emt 0:02:59]} 11. Re1 {[%emt 1:33:09]} Nbd7 {[%emt 0:00:39]} 12. Nd2 {[%emt 0:00:00]} Qb8 {[%emt 0:22:27]} 13. Nf1 {[%emt 0:00:00]} Rc8 {[%emt 0:00:21]} 14. Ne3 {[%emt 0:00:00]} Rxc3 {[%emt 0:02:26]} 15. bxc3 {[%emt 0:00:00]} Nc5 {[%emt 0:00:12]} 16. Nd5 {[%emt 0:00:00]} Nxd5 {[%emt 0:01:49]} 17. exd5 {[%emt 0:00:00]} Bd7 {[%emt 0:00:57]} 18. a5 {[%emt 0:00:00]} b5 {[%emt 0:01:01]} 19. f4 {[%emt 0:00:00]} Bf6 {[%emt 0:00:23]} 20. fxe5 {[%emt 0:00:00]} Bxe5 {[%emt 0:00:06]} 21. Rxe5 {[%emt 0:00:00]} dxe5 {[%emt 0:00:02]} 22. d6 {[%emt 0:00:00]} Qe8 {[%emt 0:02:05]} 23. Qd5 {[%emt 0:00:00]} Rc8 {[%emt 0:00:10]} 24. Ba3 {[%emt 0:00:00]} Bc6 {[%emt 0:02:21]} 25. Qxc5 {[%emt 0:00:00]} Bxg2 {[%emt 0:00:11]} 26. Qa7 {[%emt 0:00:00]} Bh3 {[%emt 0:05:33]} 27. Qxa6 {[%emt 0:00:00]} Rxc3 {[%emt 0:22:47]} 28. Qb7 {[%emt 0:00:00]} h6 {[%emt 0:06:58]} 29. a6 {[%emt 0:00:00]} Bc8 {[%emt 0:00:25]} 30. d7 {[%emt 0:00:00]} Bxd7 {[%emt 0:07:08]} 31. a7 {[%emt 0:00:00]} Rc8 {[%emt 0:00:15]} 32. Bc5 {[%emt 0:02:07]} Bc6 {[%emt 0:00:14]} 33. a8=Q {[%emt 0:00:35]} Rxa8 {[%emt 0:00:13]} 34. Rxa8 {[%emt 0:01:39]} Qxa8 {[%emt 0:00:02]} 35. Qxa8+ {[%emt 0:01:09]} Bxa8 {[%emt 0:00:03]} 36. Kf2 {[%emt 0:00:50]} f6 {[%emt 0:01:20]} 37. Ke3 {[%emt 0:00:28]} Kf7 {[%emt 0:00:10]} 38. Kd3 {[%emt 0:02:03]} Bd5 {[%emt 0:00:05]} 39. c3 {[%emt 0:00:19]} g5 {[%emt 0:00:27]} 40. Ke3 {[%emt 0:00:51]} f5 {[%emt 0:00:12]} 41. Bd6 {[%emt 0:30:23]} Kf6 {[%emt 0:30:27]} 42. Bc7 {[%emt 0:01:29]} f4+ {[%emt 0:00:08]} 43. Kd3 {[%emt 0:00:39]} Kf5 {[%emt 0:00:06]} 44. Bd6 {[%emt 0:00:22]} Bc4+ {[%emt 0:00:05]} 45. Kd2 {[%emt 0:00:08]} e4 {[%emt 0:00:09]} 46. Bf8 {[%emt 0:00:40]} e3+ {[%emt 0:00:10]} 0-1

[Event "Dutch Open-ch 2019"]
[Site "Dieren"]
[Date "2019.07.26"]
[Round "4.17"]
[White "Ojas Kulkarni"]
[Black "Reichardt, Robin"]
[Result "1-0"]
[ECO "A12"]
[WhiteElo "2251"]
[BlackElo "1811"]
[Annotator "NA"]
[PlyCount "95"]
[EventDate "2019.07.23"]
[EventType "swiss"]
[EventCountry "NED"]
[SourceTitle "playchess.com"]
[Source "ChessBase"]
[SourceQuality "1"]
[TimeControl "40/5400+30:1800+30"]

1. c4 {[%emt 0:00:00]} c6 {[%emt 0:00:01]} 2. Nf3 {[%emt 0:01:43]} d5 {[%emt 0:01:00]} 3. b3 {[%emt 0:00:14]} Nf6 {[%emt 0:00:35]} 4. Bb2 {[%emt 0:00:16]} Bf5 {[%emt 0:04:03]} 5. g3 {[%emt 0:00:33]} e6 {[%emt 0:03:07]} 6. Bg2 {[%emt 0:00:07]} h6 {[%emt 0:01:25]} 7. O-O {[%emt 0:00:24]} Be7 {[%emt 0:01:33]} 8. d3 {[%emt 0:00:25]} O-O {[%emt 0:01:08]} 9. Nbd2 {[%emt 0:00:16]} Nbd7 {[%emt 0:01:28]} 10. Qc2 {[%emt 0:01:26]} Qc7 {[%emt 0:07:46]} 11. cxd5 {[%emt 0:08:17]} exd5 {[%emt 0:01:36]} 12. Nd4 {[%emt 0:00:07]} Bh7 {[%emt 0:01:34]} 13. Bh3 {[%emt 0:00:16]} Rfe8 {[%emt 0:06:02]} 14. Rae1 {[%emt 0:01:32]} a5 {[%emt 0:12:22]} 15. a3 {[%emt 0:00:50]} Bd6 {[%emt 0:06:26]} 16. N2f3 {[%emt 0:03:13]} Ne5 {[%emt 0:05:03]} 17. Nxe5 {[%emt 0:04:38]} Bxe5 {[%emt 0:00:52]} 18. f4 {[%emt 0:00:07]} Bd6 {[%emt 0:04:05]} 19. Nf5 {[%emt 0:01:25]} Bxf5 {[%emt 0:05:41]} 20. Bxf5 {[%emt 0:00:31]} Qe7 {[%emt 0:00:40]} 21. e4 {[%emt 0:24:25]} Bxa3 {[%emt 0:04:59]} 22. Bxa3 {[%emt 0:00:24]} Qxa3 {[%emt 0:00:11]} 23. e5 {[%emt 0:00:07]} Nh7 {[%emt 0:02:19]} 24. Bxh7+ {[%emt 0:02:06]} Kxh7 {[%emt 0:00:47]} 25. d4+ {[%emt 0:00:01]} Kg8 {[%emt 0:00:56]} 26. f5 {[%emt 0:00:13]} Qb4 {[%emt 0:02:32]} 27. Qf2 {[%emt 0:02:19]} Qf8 {[%emt 0:09:30]} 28. f6 {[%emt 0:00:24]} Re6 {[%emt 0:02:43]} 29. fxg7 {[%emt 0:01:39]} Qxg7 {[%emt 0:14:06]} 30. Re3 {[%emt 0:00:05]} b5 {[%emt 0:00:00]} 31. Rf3 {[%emt 0:00:22]} Ra7 {[%emt 0:00:00]} 32. Qc2 {[%emt 0:01:04]} a4 {[%emt 0:00:00]} 33. Qc5 {[%emt 0:01:29]} Rae7 {[%emt 0:00:00]} 34. bxa4 {[%emt 0:00:25]} bxa4 {[%emt 0:00:00]} 35. Qa5 {[%emt 0:00:14]} Qg4 {[%emt 0:00:00]} 36. Rf4 {[%emt 0:04:22]} Qe2 {[%emt 0:00:00]} 37. Qxa4 {[%emt 0:01:12]} Qb5 {[%emt 0:00:22]} 38. Qd1 {[%emt 0:02:45]} c5 {[%emt 0:00:54]} 39. Qg4+ {[%emt 0:00:59]} Rg6 {[%emt 0:00:45]} 40. Qc8+ {[%emt 0:00:19]} Kg7 {[%emt 0:01:30]} 41. Rf6 {[%emt 0:45:55]} Qd3 {[%emt 0:10:14]} 42. Rxg6+ {[%emt 0:00:00]} Qxg6 {[%emt 0:08:33]} 43. Qxc5 {[%emt 0:00:00]} Rd7 {[%emt 0:01:13]} 44. Qc1 {[%emt 0:00:00]} Qe4 {[%emt 0:02:25]} 45. Rf4 {[%emt 0:00:00]} Qe2 {[%emt 0:01:05]} 46. Rh4 {[%emt 0:00:00]} h5 {[%emt 0:02:19]} 47. Qg5+ {[%emt 0:00:00]} Kf8 {[%emt 0:00:20]} 48. Rxh5 {[%emt 0:00:00]} 1-0

[Event "Dutch Open-ch 2019"]
[Site "Dieren"]
[Date "2019.07.26"]
[Round "4.18"]
[White "De Jonge, Boris"]
[Black "Elgersma, Onno"]
[Result "0-1"]
[ECO "B15"]
[WhiteElo "2059"]
[BlackElo "2232"]
[Annotator "NA"]
[PlyCount "80"]
[EventDate "2019.07.23"]
[EventType "swiss"]
[EventCountry "NED"]
[SourceTitle "playchess.com"]
[Source "ChessBase"]
[SourceQuality "1"]
[TimeControl "40/5400+30:1800+30"]

1. e4 {[%emt 0:00:00]} c6 {[%emt 0:00:08]} 2. d4 {[%emt 0:00:00]} d5 {[%emt 0:00:05]} 3. Nd2 {[%emt 0:00:31]} dxe4 {[%emt 0:01:12]} 4. Nxe4 {[%emt 0:00:09]} Nf6 {[%emt 0:00:40]} 5. Nxf6+ {[%emt 0:00:22]} exf6 {[%emt 0:00:06]} 6. c3 {[%emt 0:00:45]} Bd6 {[%emt 0:00:15]} 7. Bd3 {[%emt 0:00:22]} O-O {[%emt 0:00:26]} 8. Qc2 {[%emt 0:00:36]} Re8+ {[%emt 0:00:20]} 9. Ne2 {[%emt 0:00:21]} h5 {[%emt 0:00:46]} 10. Be3 {[%emt 0:09:20]} Nd7 {[%emt 0:00:33]} 11. O-O-O {[%emt 0:05:13]} Nf8 {[%emt 0:00:11]} 12. Ng3 {[%emt 0:07:11]} g6 {[%emt 0:07:08]} 13. Bh6 {[%emt 0:05:13]} Be6 {[%emt 0:07:27]} 14. Kb1 {[%emt 0:10:52]} b5 {[%emt 0:13:57]} 15. d5 {[%emt 0:12:12]} Bxd5 {[%emt 0:24:25]} 16. Rhg1 {[%emt 0:06:13]} Bxg3 {[%emt 0:05:40]} 17. hxg3 {[%emt 0:00:48]} Qc8 {[%emt 0:00:32]} 18. Bxf8 {[%emt 0:11:19]} Kxf8 {[%emt 0:00:41]} 19. f3 {[%emt 0:05:28]} Kg7 {[%emt 0:02:58]} 20. Rh1 {[%emt 0:09:12]} Qe6 {[%emt 0:08:09]} 21. b3 {[%emt 0:00:21]} Rad8 {[%emt 0:02:22]} 22. Rh4 {[%emt 0:01:35]} Qe3 {[%emt 0:04:40]} 23. g4 {[%emt 0:01:40]} hxg4 {[%emt 0:01:30]} 24. Rxg4 {[%emt 0:00:14]} Be6 {[%emt 0:04:26]} 25. Re4 {[%emt 0:00:09]} Qg5 {[%emt 0:01:37]} 26. Rd4 {[%emt 0:02:54]} Rxd4 {[%emt 0:01:23]} 27. cxd4 {[%emt 0:00:03]} Bd5 {[%emt 0:00:17]} 28. Qd2 {[%emt 0:01:55]} Qh4 {[%emt 0:02:21]} 29. Bc2 {[%emt 0:03:08]} Qg3 {[%emt 0:02:24]} 30. Kb2 {[%emt 0:01:16]} Rh8 {[%emt 0:01:20]} 31. Re1 {[%emt 0:06:08]} Rh2 {[%emt 0:00:58]} 32. Re2 {[%emt 0:00:00]} Qd6 {[%emt 0:01:04]} 33. a3 {[%emt 0:00:00]} a5 {[%emt 0:01:11]} 34. Be4 {[%emt 0:00:00]} Rh1 {[%emt 0:01:39]} 35. Bxd5 {[%emt 0:00:00]} Qxd5 {[%emt 0:00:17]} 36. Qc3 {[%emt 0:00:38]} a4 {[%emt 0:01:10]} 37. bxa4 {[%emt 0:00:56]} bxa4 {[%emt 0:00:02]} 38. Qb4 {[%emt 0:00:29]} c5 {[%emt 0:03:22]} 39. dxc5 {[%emt 0:01:01]} Qd1 {[%emt 0:00:49]} 40. Qd2 {[%emt 0:00:53]} Qb3# {[%emt 0:00:08]} 0-1

[Event "Dutch Open-ch 2019"]
[Site "Dieren"]
[Date "2019.07.26"]
[Round "4.19"]
[White "Mota, Pankit"]
[Black "Mohite, Ranveer"]
[Result "0-1"]
[ECO "B22"]
[WhiteElo "2002"]
[BlackElo "2229"]
[Annotator "NA"]
[PlyCount "72"]
[EventDate "2019.07.23"]
[EventType "swiss"]
[EventCountry "NED"]
[SourceTitle "playchess.com"]
[Source "ChessBase"]
[SourceQuality "1"]
[TimeControl "40/5400+30:1800+30"]

1. e4 {[%emt 0:00:00]} c5 {[%emt 0:00:38]} 2. c3 {[%emt 0:00:00]} d5 {[%emt 0:00:09]} 3. exd5 {[%emt 0:00:00]} Nf6 {[%emt 0:00:10]} 4. Nf3 {[%emt 0:01:59]} Nxd5 {[%emt 0:00:30]} 5. d4 {[%emt 0:00:14]} e6 {[%emt 0:01:54]} 6. Bc4 {[%emt 0:02:17]} cxd4 {[%emt 0:01:20]} 7. Qxd4 {[%emt 0:03:06]} Nc6 {[%emt 0:01:12]} 8. Qe4 {[%emt 0:00:08]} Be7 {[%emt 0:03:30]} 9. O-O {[%emt 0:00:26]} Nf6 {[%emt 0:00:38]} 10. Qe2 {[%emt 0:00:23]} Qc7 {[%emt 0:01:42]} 11. Re1 {[%emt 0:05:04]} a6 {[%emt 0:04:37]} 12. Nbd2 {[%emt 0:08:00]} O-O {[%emt 0:17:17]} 13. Nf1 {[%emt 0:06:28]} Re8 {[%emt 0:04:45]} 14. Ng3 {[%emt 0:02:26]} b5 {[%emt 0:04:30]} 15. Bd3 {[%emt 0:00:46]} Bb7 {[%emt 0:01:42]} 16. Ng5 {[%emt 0:02:45]} Bd6 {[%emt 0:11:20]} 17. Nh5 {[%emt 0:05:47]} Bxh2+ {[%emt 0:01:46]} 18. Kh1 {[%emt 0:00:18]} Be5 {[%emt 0:02:16]} 19. Nxf6+ {[%emt 0:12:22]} Bxf6 {[%emt 0:00:31]} 20. Nxh7 {[%emt 0:07:24]} Ne5 {[%emt 0:11:23]} 21. Be4 {[%emt 0:13:04]} Bxe4 {[%emt 0:07:52]} 22. Qxe4 {[%emt 0:00:35]} Ng4 {[%emt 0:01:29]} 23. Qxg4 {[%emt 0:08:57]} Kxh7 {[%emt 0:00:03]} 24. Re3 {[%emt 0:00:17]} Rh8 {[%emt 0:04:24]} 25. Qe4+ {[%emt 0:03:21]} Kg8+ {[%emt 0:00:04]} 26. Rh3 {[%emt 0:00:08]} Rxh3+ {[%emt 0:01:13]} 27. gxh3 {[%emt 0:00:07]} Rd8 {[%emt 0:00:04]} 28. Be3 {[%emt 0:01:00]} Be5 {[%emt 0:11:56]} 29. Rg1 {[%emt 0:02:47]} f5 {[%emt 0:02:06]} 30. Qf3 {[%emt 0:14:51]} Qc4 {[%emt 0:00:45]} 31. Qb7 {[%emt 0:00:00]} Qxa2 {[%emt 0:01:47]} 32. Bf4 {[%emt 0:00:00]} Bf6 {[%emt 0:00:20]} 33. Qc7 {[%emt 0:00:13]} Qd5+ {[%emt 0:00:19]} 34. Kh2 {[%emt 0:00:02]} Kh7 {[%emt 0:01:51]} 35. Re1 {[%emt 0:00:46]} Qf3 {[%emt 0:00:32]} 36. Qb6 {[%emt 0:01:14]} Qxf4+ {[%emt 0:00:39]} 0-1